[Event "German Bundesliga 2023-24"]
[Site "Germany"]
[Date "2024.02.04"]
[Round "8.16"]
[White "Movsesian, Sergei"]
[Black "Sreyas Payyappat"]
[Result "1-0"]
[ECO "B12"]
[WhiteElo "2605"]
[BlackElo "2075"]
[Annotator "ChessBase"]
[PlyCount "105"]
[EventDate "2023.10.20"]
[EventType "team-tourn"]
[EventCountry "GER"]
[SourceTitle "playchess.com"]
[Source "ChessBase"]
[SourceQuality "1"]
[TimeControl "40/6000+30:3000+30"]

1. e4 {[%emt 0:01:04]} c6 {[%emt 0:00:16]} 2. d4 {[%emt 0:00:29]} d5 {[%emt 0:00:05]} 3. e5 {[%emt 0:00:07]} Bf5 {[%emt 0:00:06]} 4. Nf3 {[%emt 0:00:07]} e6 {[%emt 0:00:09]} 5. Be2 {[%emt 0:00:10]} Ne7 {[%emt 0:00:09]} 6. Nbd2 {[%emt 0:02:12]} c5 {[%emt 0:06:18]} 7. dxc5 {[%emt 0:03:54]} Nec6 {[%emt 0:00:38]} 8. Nb3 {[%emt 0:01:53]} Nd7 {[%emt 0:01:35]} 9. Be3 {[%emt 0:02:56]} Qc7 {[%emt 0:06:14]} 10. Nfd4 {[%emt 0:12:23]} Qxe5 {[%emt 0:04:58]} 11. O-O {[%emt 0:04:52]} Be7 {[%emt 0:02:42]} 12. Bb5 {[%emt 0:04:16]} Rc8 {[%emt 0:06:54]} 13. Re1 {[%emt 0:04:03]} O-O {[%emt 0:02:31]} 14. Bxc6 {[%emt 0:07:14]} bxc6 {[%emt 0:00:13]} 15. Bg5 {[%emt 0:01:36]} Bxc2 {[%emt 0:00:25]} 16. Rxe5 {[%emt 0:00:29]} Bxd1 {[%emt 0:00:15]} 17. Bxe7 {[%emt 0:01:31]} Bxb3 {[%emt 0:13:00]} 18. Bxf8 {[%emt 0:00:43]} Kxf8 {[%emt 0:00:24]} 19. Re3 {[%emt 0:01:03]} Bc4 {[%emt 0:00:29]} 20. Ra3 {[%emt 0:01:05]} e5 {[%emt 0:10:30]} 21. Nf5 {[%emt 0:04:37]} Nxc5 {[%emt 0:04:31]} 22. Rxa7 {[%emt 0:02:07]} Rd8 {[%emt 0:00:48]} 23. Ne3 {[%emt 0:08:35]} Bb5 {[%emt 0:01:45]} 24. a4 {[%emt 0:01:04]} Nxa4 {[%emt 0:02:05]} 25. R1xa4 {[%emt 0:02:04]} Bxa4 {[%emt 0:00:05]} 26. Rxa4 {[%emt 0:00:04]} Rb8 {[%emt 0:00:20]} 27. Nd1 {[%emt 0:01:40]} d4 {[%emt 0:07:23]} 28. Rc4 {[%emt 0:07:50]} Rb6 {[%emt 0:06:14]} 29. f4 {[%emt 0:04:14]} f6 {[%emt 0:00:50]} 30. fxe5 {[%emt 0:00:27]} fxe5 {[%emt 0:00:09]} 31. Rc5 {[%emt 0:03:17]} e4 {[%emt 0:01:08]} 32. Kf1 {[%emt 0:00:35]} Kf7 {[%emt 0:05:35]} 33. Rc4 {[%emt 0:02:13]} c5 {[%emt 0:01:21]} 34. Rxc5 {[%emt 0:00:05]} Rf6+ {[%emt 0:00:06]} 35. Ke1 {[%emt 0:02:53]} Rg6 {[%emt 0:00:56]} 36. g3 {[%emt 0:03:15]} Rh6 {[%emt 0:00:22]} 37. h4 {[%emt 0:01:45]} Rg6 {[%emt 0:02:03]} 38. Rf5+ {[%emt 0:00:31]} Ke6 {[%emt 0:00:54]} 39. Rg5 {[%emt 0:00:17]} Rxg5 {[%emt 0:02:40]} 40. hxg5 {[%emt 0:00:04]} Kd5 {[%emt 0:02:05]} 41. Ke2 {[%emt 0:53:05]} Kc4 {[%emt 0:51:23]} 42. Nf2 {[%emt 0:00:45]} e3 {[%emt 0:05:18]} 43. Nd3 {[%emt 0:02:51]} Kb3 {[%emt 0:01:26]} 44. Kd1 {[%emt 0:00:12]} Ka4 {[%emt 0:03:35]} 45. Kc2 {[%emt 0:00:20]} Ka5 {[%emt 0:00:12]} 46. Nf4 {[%emt 0:00:35]} Kb4 {[%emt 0:01:09]} 47. Kd3 {[%emt 0:00:28]} Kb3 {[%emt 0:00:00]} 48. Kxd4 {[%emt 0:00:20]} e2 {[%emt 0:01:21]} 49. Nxe2 {[%emt 0:00:05]} Kxb2 50. Nf4 {[%emt 0:00:06]} Kc2 {[%emt 0:00:11]} 51. Nh5 {[%emt 0:00:24]} Kd2 52. Nxg7 {[%emt 0:00:12]} Ke2 {[%emt 0:00:30]} 53. Ke4 {[%emt 0:00:05]} 1-0

[Event "German Bundesliga 2023-24"]
[Site "Germany"]
[Date "2024.02.04"]
[Round "8.16"]
[White "Fromm, Marius"]
[Black "Gungl, Theo"]
[Result "1-0"]
[ECO "B82"]
[WhiteElo "2435"]
[BlackElo "2372"]
[Annotator "RC"]
[PlyCount "109"]
[EventDate "2023.10.20"]
[EventType "team-tourn"]
[EventCountry "GER"]
[SourceTitle "playchess.com"]
[Source "ChessBase"]
[SourceQuality "1"]
[TimeControl "40/6000+30:3000+30"]

1. e4 {[%emt 0:00:05]} c5 {[%emt 0:00:04]} 2. Nf3 {[%emt 0:00:03]} d6 {[%emt 0:00:05]} 3. d4 {[%emt 0:00:03]} cxd4 {[%emt 0:00:03]} 4. Nxd4 {[%emt 0:00:04]} Nf6 {[%emt 0:00:04]} 5. Nc3 {[%emt 0:00:05]} a6 {[%emt 0:00:02]} 6. f4 {[%emt 0:00:04]} e6 {[%emt 0:02:05]} 7. Qf3 {[%emt 0:00:16]} Qb6 {[%emt 0:03:34]} 8. a3 {[%emt 0:01:44]} Nc6 {[%emt 0:10:34]} 9. Nxc6 {[%emt 0:02:06]} Qxc6 {[%emt 0:01:18]} 10. Bd3 {[%emt 0:04:52]} b5 {[%emt 0:07:30]} 11. Be3 {[%emt 0:08:23]} Bb7 {[%emt 0:02:13]} 12. g4 {[%emt 0:02:18]} Nd7 {[%emt 0:11:54]} 13. O-O-O {[%emt 0:02:53]} Rc8 {[%emt 0:06:16]} 14. g5 {[%emt 0:08:12]} Nc5 {[%emt 0:04:41]} 15. f5 {[%emt 0:05:25]} exf5 {[%emt 0:18:23]} 16. Qxf5 {[%emt 0:02:34]} Qd7 {[%emt 0:01:28]} 17. Rhf1 {[%emt 0:07:37]} Qe6 {[%emt 0:14:09]} 18. Bd4 {[%emt 0:04:37]} h6 {[%emt 0:01:45]} 19. g6 {[%emt 0:12:27]} fxg6 {[%emt 0:05:54]} 20. Qxe6+ {[%emt 0:02:34]} Nxe6 {[%emt 0:00:03]} 21. e5 {[%emt 0:00:09]} d5 {[%emt 0:06:44]} 22. Bxg6+ {[%emt 0:00:32]} Kd7 {[%emt 0:00:41]} 23. Be3 {[%emt 0:03:35]} Rxc3 {[%emt 0:01:38]} 24. Rf7+ {[%emt 0:00:35]} Kc6 {[%emt 0:00:57]} 25. bxc3 {[%emt 0:00:04]} Bxa3+ {[%emt 0:00:06]} 26. Kb1 {[%emt 0:00:29]} Bc8 {[%emt 0:02:10]} 27. Ka2 {[%emt 0:03:00]} Bf8 {[%emt 0:01:24]} 28. Rdf1 {[%emt 0:02:31]} b4 {[%emt 0:02:42]} 29. Rb1 {[%emt 0:15:54]} Nc7 {[%emt 0:02:03]} 30. Bf5 {[%emt 0:03:57]} Bxf5 {[%emt 0:01:08]} 31. Rxf5 {[%emt 0:00:03]} Nb5 {[%emt 0:00:45]} 32. Kb3 {[%emt 0:00:22]} Nxc3 {[%emt 0:01:15]} 33. Ra1 {[%emt 0:00:24]} Bc5 {[%emt 0:02:29]} 34. Bxc5 {[%emt 0:01:30]} Kxc5 {[%emt 0:00:01]} 35. Rxa6 {[%emt 0:00:10]} Re8 {[%emt 0:01:05]} 36. Rf4 {[%emt 0:08:28]} Ne2 {[%emt 0:00:39]} 37. Rf7 {[%emt 0:01:13]} Rxe5 {[%emt 0:00:22]} 38. Rxg7 {[%emt 0:00:23]} Re3+ {[%emt 0:00:21]} 39. Kb2 {[%emt 0:00:16]} Nc3 {[%emt 0:00:48]} 40. Rc7+ {[%emt 0:06:44]} Kb5 {[%emt 0:00:18]} 41. Ra8 {[%emt 0:51:09]} Na4+ {[%emt 0:14:44]} 42. Kc1 {[%emt 0:00:00]} Nb6 {[%emt 0:05:31]} 43. Rb8 {[%emt 0:00:00]} Re6 {[%emt 0:00:45]} 44. Kd2 {[%emt 0:00:00]} Re4 {[%emt 0:06:30]} 45. Kd3 {[%emt 0:00:00]} Re6 {[%emt 0:01:20]} 46. h4 {[%emt 0:00:00]} h5 {[%emt 0:08:22]} 47. Rh7 {[%emt 0:00:00]} Rc6 {[%emt 0:01:16]} 48. Rxh5 {[%emt 0:00:00]} Rc3+ {[%emt 0:01:57]} 49. Kd4 {[%emt 0:00:00]} Rc4+ {[%emt 0:00:28]} 50. Ke3 {[%emt 0:00:00]} Kc5 {[%emt 0:01:28]} 51. Rhh8 {[%emt 0:00:00]} Re4+ {[%emt 0:03:50]} 52. Kf3 {[%emt 0:00:00]} Nc4 {[%emt 0:01:00]} 53. h5 {[%emt 0:00:00]} Nd6 {[%emt 0:02:31]} 54. h6 {[%emt 0:00:00]} Nf7 {[%emt 0:01:13]} 55. h7 {[%emt 0:00:00]} 1-0

[Event "German Bundesliga 2023-24"]
[Site "Germany"]
[Date "2024.02.04"]
[Round "8.16"]
[White "Geirnaert, Steven"]
[Black "Schulze, Lara"]
[Result "0-1"]
[ECO "E20"]
[WhiteElo "2432"]
[BlackElo "2293"]
[Annotator "ChessBase"]
[PlyCount "64"]
[EventDate "2023.10.20"]
[EventType "team-tourn"]
[EventCountry "GER"]
[SourceTitle "playchess.com"]
[Source "ChessBase"]
[SourceQuality "1"]
[TimeControl "40/6000+30:3000+30"]

1. d4 {[%emt 0:00:30]} Nf6 {[%emt 0:00:04]} 2. c4 {[%emt 0:00:00]} e6 {[%emt 0:00:06]} 3. Nc3 {[%emt 0:00:00]} Bb4 {[%emt 0:00:07]} 4. f3 {[%emt 0:00:05]} c5 {[%emt 0:00:10]} 5. d5 {[%emt 0:00:09]} b5 {[%emt 0:00:05]} 6. e4 {[%emt 0:00:18]} d6 {[%emt 0:00:25]} 7. dxe6 {[%emt 0:00:56]} Bxe6 {[%emt 0:00:56]} 8. Bf4 {[%emt 0:00:09]} O-O {[%emt 0:03:51]} 9. Bxd6 {[%emt 0:00:52]} Re8 {[%emt 0:00:11]} 10. cxb5 {[%emt 0:00:13]} Nd5 {[%emt 0:02:37]} 11. Be5 {[%emt 0:01:00]} Nd7 {[%emt 0:05:36]} 12. exd5 {[%emt 0:00:29]} Bf5 {[%emt 0:01:05]} 13. f4 {[%emt 0:00:05]} Nxe5 {[%emt 0:01:56]} 14. fxe5 {[%emt 0:00:11]} Qh4+ {[%emt 0:00:06]} 15. g3 {[%emt 0:01:02]} Qe4+ {[%emt 0:00:06]} 16. Kf2 {[%emt 0:00:16]} Qxh1 {[%emt 0:00:03]} 17. Nf3 {[%emt 0:06:28]} c4 {[%emt 0:01:43]} 18. Qd4 {[%emt 0:00:15]} Rac8 {[%emt 0:00:08]} 19. Na4 {[%emt 0:00:06]} h5 {[%emt 0:02:28]} 20. h3 {[%emt 0:08:02]} Bxh3 {[%emt 0:01:32]} 21. Rd1 {[%emt 0:11:11]} g5 {[%emt 0:05:23]} 22. d6 {[%emt 0:04:27]} Re6 {[%emt 0:16:25]} 23. Qe3 {[%emt 0:23:53]} Rg6 {[%emt 0:13:49]} 24. a3 {[%emt 0:23:20]} Ba5 {[%emt 0:12:00]} 25. d7 {[%emt 0:01:34]} Rd8 {[%emt 0:02:28]} 26. Qxa7 {[%emt 0:05:53]} Rxd7 {[%emt 0:19:49]} 27. Bxh3 {[%emt 0:11:42]} Rxd1 {[%emt 0:03:18]} 28. Qa8+ {[%emt 0:00:21]} Kg7 {[%emt 0:01:18]} 29. Bg2 {[%emt 0:00:37]} Be1+ {[%emt 0:01:37]} 30. Ke2 {[%emt 0:00:06]} Qxg2+ {[%emt 0:00:24]} 31. Kxd1 {[%emt 0:00:06]} Bxg3 {[%emt 0:00:51]} 32. b6 {[%emt 0:03:29]} Qf1+ {[%emt 0:01:57]} 0-1

[Event "German Bundesliga 2023-24"]
[Site "Germany"]
[Date "2024.02.23"]
[Round "9.1"]
[White "Kadric, Denis"]
[Black "Shevchenko, Kirill"]
[Result "0-1"]
[ECO "B89"]
[WhiteElo "2579"]
[BlackElo "2651"]
[Annotator "TA"]
[PlyCount "56"]
[EventDate "2023.10.20"]
[EventType "team-tourn"]
[EventCountry "GER"]
[SourceTitle "playchess.com"]
[Source "ChessBase"]
[SourceQuality "1"]
[TimeControl "40/6000+30:3000+30"]

{[%evp 13,56,18,27,24,33,11,17,0,0,-3,0,-27,-22,-18,-16,-14,-4,-64,-71,-89,-108,-231,-236,-284,-268,-286,-289,-295,-296,-297,-189,-251,-274,-345,-345,-341,-347,-426,-425,-452,-435,-460,-461,-433,-427]} 1. e4 {[%emt 0:00:04]} c5 {[%emt 0:00:12]} 2. Nf3 {[%emt 0:00:10]} d6 {[%emt 0:00:18]} 3. d4 {[%emt 0:00:35]} cxd4 {[%emt 0:00:04]} 4. Nxd4 {[%emt 0:00:02]} Nf6 {[%emt 0:00:07]} 5. Nc3 {[%emt 0:00:03]} Nc6 {[%emt 0:00:20]} 6. Bc4 {[%emt 0:00:53]} e6 {[%emt 0:02:40]} 7. Be3 {[%emt 0:01:46]} Bd7 {[%emt 0:02:01]} 8. Bb3 {[%emt 0:00:35]} Nxd4 {[%emt 0:01:36]} 9. Qxd4 {[%emt 0:00:57]} Be7 {[%emt 0:00:56]} 10. O-O-O {[%emt 0:00:57] The position is equal.} O-O {[%emt 0:03:11]} 11. f4 {[%emt 0:01:24]} b5 {[%emt 0:02:29]} 12. a3 {[%emt 0:27:28]} a5 {[%emt 0:04:51][%cal Ba7a5,Ba5a4][%mdl 32]} 13. e5 {[%emt 0:08:25]} Ng4 {[%emt 0:00:58][%cal Ob5b4] Hoping for ...b4!} (13... dxe5 14. fxe5 Nd5 15. Nxd5 exd5 16. Qxd5 $16 (16. Bxd5 Bf5 $18)) 14. exd6 {[%emt 0:01:59]} Bf6 {[%emt 0:00:12]} 15. Qb6 {[%emt 0:02:02] [#]} ({Better is} 15. Qd2 $11) 15... b4 $1 $15 {[%emt 0:43:00]} 16. Ne4 {[%emt 0:17:22]} (16. axb4 Nxe3) 16... a4 $1 {[%emt 0:00:23]} 17. Ba2 {[%emt 0:01:20] [#] Loses the game.} (17. Qxd8 $2 Bxd8 18. Bd4 axb3 $19) (17. Bc4 $17 bxa3 18. bxa3) 17... b3 $1 $19 {[%emt 0:04:23][%mdl 512]} 18. Bb1 {[%emt 0:18:21] [#]} (18. cxb3 axb3) 18... bxc2 $1 {[%emt 0:02:03]} 19. Bxc2 {[%emt 0:00:12] [#]} Bxb2+ $1 {[%emt 0:04:48][%mdl 512]} 20. Qxb2 {[%emt 0:00:16]} (20. Kxb2 $2 {is the wrong capture.} Rb8 21. Bd4 Rxb6+ $19) 20... Nxe3 {[%emt 0:00:08]} 21. Rd3 {[%emt 0:00:45]} Nxc2 {[%emt 0:07:42]} (21... Nxg2 $2 {perishes.} 22. Rg3 e5 23. Rxg2 $18 (23. Qxe5 f6 $18)) 22. Qxc2 {[%emt 0:03:04]} (22. Rg3 $142 f6 (22... e5 23. Qxe5 f6 24. Qe7 $17) 23. Qxc2) 22... Rc8 {[%emt 0:01:45]} 23. Rc3 {[%emt 0:02:18]} Rxc3 {[%emt 0:03:13]} 24. Nxc3 {[%emt 0:00:33]} Qb6 {[%emt 0:02:29]} 25. Rd1 {[%emt 0:03:44]} Rc8 {[%emt 0:00:47][%cal Oe6e5] Black is clearly winning.} 26. g3 {[%emt 0:01:28]} Qc5 {[%emt 0:04:46][%csl LRa3,LRc3]} 27. Kb2 {[%emt 0:07:28]} Rb8+ {[%emt 0:00:26]} 28. Ka1 {[%emt 0:00:01]} Rb3 {[%emt 0:01:01] Weighted Error Value: White=0.33/Black=0.07 (flawless) .  Mistake:       	White=3     	---        Inaccurate:     	White=1     	Black=1      OK:         	White=2     	Black=12     Best:        	White=2     	Black=1      Strong:       	---       	Black=2      Brilliant:      	---       	Black=2} ({Not} 28... Qxa3+ 29. Na2 $19) 0-1

[Event "German Bundesliga 2023-24"]
[Site "Germany"]
[Date "2024.02.23"]
[Round "9.2"]
[White "Ivic, Velimir"]
[Black "Brkic, Ante"]
[Result "1/2-1/2"]
[ECO "B87"]
[WhiteElo "2557"]
[BlackElo "2606"]
[Annotator "TA"]
[PlyCount "71"]
[EventDate "2023.10.20"]
[EventType "team-tourn"]
[EventCountry "GER"]
[SourceTitle "playchess.com"]
[Source "ChessBase"]
[SourceQuality "1"]
[TimeControl "40/6000+30:3000+30"]

{[%evp 19,71,0,-2,-17,0,-19,15,0,0,0,0,0,0,0,0,0,0,0,0,0,0,-31,-52,-137,-116,-121,-47,-52,-67,-53,-17,-14,109,100,96,97,89,65,58,44,90,91,77,76,100,2,37,25,22,0,20,0,77,0]} 1. e4 {[%emt 0:00:13]} c5 {[%emt 0:00:07]} 2. Nf3 {[%emt 0:00:16]} d6 {[%emt 0:00:05]} 3. d4 {[%emt 0:00:12]} cxd4 {[%emt 0:00:04]} 4. Nxd4 {[%emt 0:00:06]} Nf6 {[%emt 0:00:04]} 5. Nc3 {[%emt 0:00:09]} a6 {[%emt 0:00:03]} 6. Bc4 {[%emt 0:01:05]} e6 {[%emt 0:02:13]} 7. Be3 {[%emt 0:02:00]} b5 {[%emt 0:04:12]} 8. Bb3 {[%emt 0:00:13]} Be7 {[%emt 0:02:23]} 9. a3 {[%emt 0:01:35]} O-O {[%emt 0:11:50]} 10. Qe2 {[%emt 0:01:30]} Bb7 {[%emt 0:05:07]} 11. f3 {[%emt 0:01:25]} Nc6 {[%emt 0:02:36]} 12. O-O-O {[%emt 0:00:49]} b4 {[%emt 0:04:38]} 13. Nxc6 {[%emt 0:02:17] The position is equal.} Bxc6 {[%emt 0:00:04]} 14. axb4 {[%emt 0:00:06]} Qb8 {[%emt 0:00:08]} 15. Rd4 {[%emt 0:02:02]} Ne8 {[%emt 0:02:40]} 16. Rhd1 {[%emt 0:15:47]} Bf6 {[%emt 0:01:57]} 17. Rc4 {[%emt 0:18:24]} Qb7 {[%emt 0:11:55]} 18. Qd2 {[%emt 0:02:24]} Bb5 {[%emt 0:02:22]} 19. Rd4 {[%emt 0:00:34]} Bxd4 {[%emt 0:13:29]} 20. Bxd4 {[%emt 0:00:17]} a5 {[%emt 0:11:50]} 21. e5 {[%emt 0:09:17]} ({White should play} 21. Nxb5 $15 Qxb5 22. bxa5 Qxa5 (22... Rxa5 23. c4 $11) 23. Qxa5 Rxa5 24. Kb1) 21... axb4 $17 {[%emt 0:03:17]} 22. Nb1 {[%emt 0:01:00]} Ba4 {[%emt 0:16:12]} (22... Bc6 $17 {aiming for ...dxe5.} 23. exd6 Qb5 (23... Nxd6 24. Bxg7 Kxg7 25. Qg5+ Kh8 26. Qf6+ Kg8 27. Qg5+ Kh8 28. Qf6+ Kg8 29. Qg5+ Kh8 $11)) 23. Bxa4 $1 $15 {[%emt 0:06:11]} Rxa4 {[%emt 0:00:01]} 24. exd6 {[%emt 0:00:29]} Ra5 {[%emt 0:05:56][%cal Oa5d5] Inhibits Qg5. Threatens to win with ...Rd5!} ({But not} 24... Nxd6 25. Bxg7 Kxg7 26. Qg5+ Kh8 27. Qf6+ Kg8 28. Qg5+ Kh8 29. Qf6+ Kg8 30. Qg5+ Kh8 $11) 25. d7 $1 {[%emt 0:13:08]} Rd5 {[%emt 0:00:01]} (25... Qxd7 $11 26. Qxb4 Rd5) 26. dxe8=Q {[%emt 0:03:29]} Rxe8 {[%emt 0:00:02]} 27. Qf2 {[%emt 0:06:24]} Rc8 {[%emt 0:08:45]} 28. Be3 {[%emt 0:05:47]} (28. f4 {looks sharper.} Qa6 29. b3 Qa2 30. Rd3) 28... Rxd1+ {[%emt 0:01:43]} 29. Kxd1 {[%emt 0:00:01]} b3 {[%emt 0:00:29]} (29... Qa6 $14 {feels stronger.}) 30. c3 $1 $16 {[%emt 0:01:07]} Qa6 {[%emt 0:00:19]} 31. Qe2 {[%emt 0:02:42] Dodges Qd3+} Rd8+ {[%emt 0:00:27] [#]} 32. Bd2 {[%emt 0:00:45]} (32. Bd4 $1 $16 Qd6 33. Nd2 Qxh2 34. g4 (34. Nxb3 e5 $17) 34... Qh1+ 35. Qe1) 32... Qa7 {[%emt 0:00:48]} 33. Qe1 {[%emt 0:09:08] Dodges Qg1} Qa6 {[%emt 0:00:23]} 34. Qe2 {[%emt 0:00:20]} Qa7 {[%emt 0:00:05]} 35. Qe1 {[%emt 0:00:10] Wards off Qg1} (35. Qf1 $11) 35... Qa6 {[%emt 0:00:01] [#]} 36. Qe2 {[%emt 0:00:15] Weighted Error Value: White=0.16 (very precise) /Black=0.18 (very precise) .  Mistake:       	White=4     	Black=3      Inaccurate:     	White=1     	Black=3      OK:         	White=10    	Black=12     Best:        	---       	Black=1      Strong:       	White=3     	---} (36. Na3 $1 $16) 1/2-1/2

[Event "German Bundesliga 2023-24"]
[Site "Germany"]
[Date "2024.02.23"]
[Round "9.4"]
[White "Areshchenko, Alexander"]
[Black "Markus, Robert"]
[Result "1/2-1/2"]
[ECO "C41"]
[WhiteElo "2625"]
[BlackElo "2582"]
[Annotator "TA"]
[PlyCount "69"]
[EventDate "2023.10.20"]
[EventType "team-tourn"]
[EventCountry "GER"]
[SourceTitle "playchess.com"]
[Source "ChessBase"]
[SourceQuality "1"]
[TimeControl "40/6000+30:3000+30"]

{[%evp 12,69,23,36,28,18,33,0,5,12,22,0,0,0,0,0,1,-8,0,0,0,0,0,0,6,0,0,0,0,0,0,0,0,0,0,0,0,0,10,0,6,0,0,0,11,8,8,9,10,0,0,-15,-12,-13,0,-18,-15,-14,-9,-16]} 1. e4 {[%emt 0:00:04]} d6 {[%emt 0:00:06]} 2. d4 {[%emt 0:00:08]} Nf6 {[%emt 0:00:07]} 3. Nc3 {[%emt 0:00:14]} e5 {[%emt 0:00:07]} 4. Nf3 {[%emt 0:00:07]} Nbd7 {[%emt 0:00:05]} 5. Bc4 {[%emt 0:00:08]} Be7 {[%emt 0:00:07]} 6. a4 {[%emt 0:00:05]} O-O {[%emt 0:00:10]} 7. O-O {[%emt 0:00:05]} exd4 {[%emt 0:00:11]} 8. Qxd4 {[%emt 0:02:09]} Nc5 {[%emt 0:00:07]} 9. Re1 {[%emt 0:03:24]} Bg4 {[%emt 0:03:14] The position is equal.} 10. Nd2 {[%emt 0:05:13][%cal Bf3d2,Bd2f1,Bf1g3][%mdl 32]} c6 {[%emt 0:04:36]} 11. Nf1 {[%emt 0:03:39]} Re8 {[%emt 0:07:54]} 12. Ng3 {[%emt 0:15:39]} Be6 {[%emt 0:16:09][%cal Bg4e6,Be6d5,Bd5e4][%mdl 32]} 13. Bf1 {[%emt 0:12:29]} a5 {[%emt 0:08:21]} 14. b3 {[%emt 0:10:17]} d5 {[%emt 0:05:29]} (14... Ng4 {looks sharper.} 15. Nh5 Bf8 16. h3 Ne5) 15. exd5 {[%emt 0:10:19]} Nxd5 {[%emt 0:01:44]} 16. Nxd5 {[%emt 0:03:34]} Qxd5 {[%emt 0:01:27]} 17. Qxd5 {[%emt 0:01:41]} Bxd5 {[%emt 0:00:50]} 18. Ba3 {[%emt 0:04:35][%cal Oe1e7] [#] And now Rxe7! would win.} Bf8 {[%emt 0:01:16]} 19. Nf5 {[%emt 0:06:51]} Be4 {[%emt 0:05:34]} 20. Ne3 {[%emt 0:02:24]} Ne6 {[%emt 0:04:10]} 21. Bxf8 {[%emt 0:03:46]} Kxf8 {[%emt 0:01:34]} 22. Rad1 {[%emt 0:06:37]} Rad8 {[%emt 0:02:21]} 23. f3 {[%emt 0:00:52]} Bg6 {[%emt 0:00:20]} 24. Kf2 {[%emt 0:00:38]} Ke7 {[%emt 0:04:00]} 25. h4 {[%emt 0:05:40]} h6 {[%emt 0:04:49]} 26. Bc4 {[%emt 0:01:38]} Rxd1 {[%emt 0:02:56]} 27. Rxd1 {[%emt 0:00:05]} Nc5 {[%emt 0:04:31]} 28. g4 {[%emt 0:03:03]} Bh7 {[%emt 0:05:11]} 29. Rd2 {[%emt 0:02:04]} g5 {[%emt 0:03:46]} 30. h5 {[%emt 0:00:25]} Rf8 {[%emt 0:07:49]} 31. Be2 {[%emt 0:03:18]} f5 {[%emt 0:07:03]} 32. Ke1 {[%emt 0:00:03]} fxg4 {[%emt 0:00:13]} 33. fxg4 {[%emt 0:02:57]} Ne4 {[%emt 0:01:46]} 34. Rd4 {[%emt 0:00:28]} Nd6 {[%emt 0:00:12]} 35. Bd3 {[%emt 0:01:37] A balanced but interesting game.   Weighted Error Value: White=0.05 (flawless) /Black=0.02 (flawless) .  Inaccurate:     	White=1     	---        OK:         	White=10    	Black=13     Best:        	---       	Black=1} 1/2-1/2

[Event "German Bundesliga 2023-24"]
[Site "Germany"]
[Date "2024.02.23"]
[Round "9.5"]
[White "Stevic, Hrvoje"]
[Black "Efimenko, Zahar"]
[Result "1/2-1/2"]
[ECO "C48"]
[WhiteElo "2549"]
[BlackElo "2575"]
[Annotator "TA"]
[PlyCount "56"]
[EventDate "2023.10.20"]
[EventType "team-tourn"]
[EventCountry "GER"]
[SourceTitle "playchess.com"]
[Source "ChessBase"]
[SourceQuality "1"]
[TimeControl "40/6000+30:3000+30"]

{[%evp 9,56,8,21,19,15,17,17,11,20,32,22,15,11,11,18,12,25,15,10,8,15,0,8,0,0,0,9,0,0,0,0,0,0,0,0,0,0,4,14,8,8,7,14,0,11,8,16,20,22]} 1. e4 {[%emt 0:00:04]} e5 {[%emt 0:00:40]} 2. Nf3 {[%emt 0:00:26]} Nc6 {[%emt 0:00:08]} 3. Nc3 {[%emt 0:00:30]} Nf6 {[%emt 0:00:26]} 4. Bb5 {[%emt 0:00:36]} Bd6 {[%emt 0:00:23]} 5. d3 {[%emt 0:00:31]} O-O {[%emt 0:00:24]} 6. O-O {[%emt 0:00:22]} Nd4 {[%emt 0:01:02]} 7. Nxd4 {[%emt 0:17:17]} exd4 {[%emt 0:00:41]} 8. Ne2 {[%emt 0:00:05]} c6 {[%emt 0:00:34]} 9. Bc4 {[%emt 0:14:30]} Bc7 {[%emt 0:00:50]} 10. Bf4 {[%emt 0:02:20]} Bxf4 {[%emt 0:02:10]} 11. Nxf4 {[%emt 0:01:07]} b5 {[%emt 0:00:09]} 12. Bb3 {[%emt 0:00:11]} d6 {[%emt 0:00:16]} 13. c3 {[%emt 0:10:31]} dxc3 {[%emt 0:02:29] The position is equal.} 14. bxc3 {[%emt 0:01:13]} a5 {[%emt 0:00:23]} 15. a3 {[%emt 0:15:20]} Re8 {[%emt 0:08:53]} 16. Re1 {[%emt 0:00:38]} Qc7 {[%emt 0:13:17]} 17. Qd2 {[%emt 0:10:08]} Bb7 {[%emt 0:07:57]} 18. c4 {[%emt 0:02:13]} bxc4 {[%emt 0:08:47]} 19. Bxc4 {[%emt 0:00:08]} d5 {[%emt 0:00:20]} 20. exd5 {[%emt 0:00:12]} Rxe1+ {[%emt 0:00:34]} 21. Rxe1 {[%emt 0:00:16]} cxd5 {[%emt 0:00:14]} 22. Bb5 {[%emt 0:04:30]} Qd6 {[%emt 0:05:34]} 23. a4 {[%emt 0:00:45]} h6 {[%emt 0:06:31]} 24. Ne2 {[%emt 0:08:38]} Bc6 {[%emt 0:04:34]} 25. Rb1 {[%emt 0:05:07]} Bxb5 {[%emt 0:04:24]} 26. Rxb5 {[%emt 0:00:12]} Qa3 {[%emt 0:01:02]} 27. Qc2 {[%emt 0:06:29]} Qa1+ {[%emt 0:01:10]} 28. Rb1 {[%emt 0:00:04]} Qe5 {[%emt 0:04:17] Not much happened in this game.   Weighted Error Value: White=0.02 (flawless) /Black=0.01 (flawless) .  OK:         	White=12    	Black=12     Best:        	---       	Black=3} 1/2-1/2